bitfinex/quotes_ETHUSD_20241120
["timestamp","ask_amount","ask_price","bid_price","bid_amount"]
[1732082707679,3.21326,3112.1,3111.7,0.7542]
[1732082707978,1.3374702,3112.2,3112.0,0.02982011]
[1732082708177,1.3374702,3112.2,3111.7,4.664662]
[1732082708354,3.3506616,3112.3,3112.1,0.02979386]
[1732082708545,0.1376016,3112.3,3111.8,3.9677]
[1732082708745,0.1376016,3112.3,3112.2,0.02978324]
[1732082708970,0.1376016,3112.3,3111.9,0.39677]
[1732082709136,0.1376016,3112.3,3112.2,0.02980745]
[1732082709339,0.1376016,3112.3,3112.2,0.7542]
[1732082709575,0.1376016,3112.3,3112.2,0.78399703]
[1732082709776,0.1376016,3112.3,3112.2,1.18074603]
[1732082709978,0.1376016,3112.3,3112.2,0.78399703]
[1732082710701,0.1376016,3112.3,3112.2,3.99715703]
[1732082711565,0.1376016,3112.3,3112.2,0.78399703]
[1732082712761,0.1376016,3112.3,3112.2,3.99715703]
[1732082715103,0.1376016,3112.3,3112.2,6.99715703]
[1732082715313,0.1376016,3112.3,3112.2,8.68365006]
[1732082716126,0.1376016,3112.3,3112.2,12.06065006]
[1732082717589,0.1376016,3112.3,3112.2,8.68365006]
[1732082718701,4.6881218,3112.3,3112.2,0.02979703]
[1732082718920,4.6881218,3112.3,3111.7,3.97911]
[1732082718921,3.3506516,3112.3,3111.7,3.97911]
[1732082719199,3.3506516,3112.3,3111.8,0.397911]
[1732082719702,0.1376016,3112.3,3111.9,0.06426108]
[1732082720002,0.1376016,3112.3,3111.9,3.27771108]
[1732082720175,0.1376016,3112.3,3111.9,0.82973429]
[1732082720371,3.3506616,3112.3,3111.9,0.82973429]
[1732082720589,3.3506616,3112.3,3111.7,3.97911]
[1732082721482,0.1376016,3112.3,3111.8,3.21351]
[1732082721799,0.1376016,3112.3,3111.9,3.27770095]
[1732082722053,0.1376016,3112.3,3112.0,0.32777009]
[1732082723633,0.1376016,3112.3,3112.1,0.7655]
[1732082723858,0.1376016,3112.3,3112.1,0.82975759]
[1732082724137,0.1376016,3112.3,3112.1,0.7655]
[1732082725310,0.1376016,3112.3,3112.1,3.97875]
[1732082725510,0.1376016,3112.3,3112.1,4.0430038]
[1732082725722,0.1376016,3112.3,3112.2,0.73205273]
[1732082726350,0.1376016,3112.3,3112.2,3.94521273]
[1732082728367,0.1376016,3112.3,3112.2,0.73205273]
[1732082729549,0.1376016,3112.3,3112.2,3.94521273]
[1732082730817,0.1376016,3112.3,3112.2,4.00946184]
[1732082731856,0.1376016,3112.3,3112.2,0.79630184]
[1732082732040,0.1376016,3112.3,3112.2,0.88341391]
[1732082732352,0.1376016,3112.3,3112.2,4.09657391]
[1732082733567,0.1376016,3112.3,3112.2,7.92567391]
[1732082733765,0.1376016,3112.3,3112.2,7.86141804]
[1732082734660,0.1376016,3112.3,3112.2,8.09995478]
[1732082735362,0.1376016,3112.3,3112.2,11.47695478]
[1732082737459,0.1376016,3112.3,3112.2,11.23841804]
[1732082737663,0.1376016,3112.3,3112.2,11.47689119]
[1732082739475,0.1376016,3112.3,3112.2,12.02689119]
[1732082740828,0.1376016,3112.3,3112.2,12.03689119]
[1732082741921,0.1376016,3112.3,3112.2,11.48689119]
[1732082742133,0.1376016,3112.3,3112.2,12.03689119]
[1732082743556,0.0876016,3112.3,3112.2,12.02689119]
[1732082743860,0.0876016,3112.3,3112.2,11.23841804]
[1732082744259,0.0876016,3112.3,3112.2,12.02687361]
[1732082744615,0.0876016,3112.3,3112.2,11.48687361]
[1732082744752,0.0876016,3112.3,3112.2,11.47687361]
[1732082745601,0.0876016,3112.3,3112.2,7.27077361]
[1732082746386,0.0876016,3112.3,3112.2,0.32556088]
[1732082746598,0.0876016,3112.3,3112.2,0.08710531]
[1732082746901,0.0876016,3112.3,3111.9,6.4268]
[1732082746902,0.0876016,3112.3,3112.0,3.21333]
[1732082747049,0.0876016,3112.3,3112.2,0.08412649]
[1732082747249,0.0876016,3112.3,3111.9,3.616799]
[1732082747492,0.0876016,3112.3,3112.2,0.08412649]
[1732082747700,0.0876016,3112.3,3111.9,3.616799]
[1732082747992,0.0876016,3112.3,3112.2,0.08412649]
[1732082748157,0.0876016,3112.3,3112.0,3.6570999]
[1732082748489,0.0876016,3112.3,3112.1,3.29731426]
[1732082748695,0.0876016,3112.3,3112.1,0.08414426]
[1732082748986,3.3007316,3112.3,3112.1,0.08414426]
[1732082749165,0.0876016,3112.3,3112.1,0.08414426]
[1732082749566,0.0876016,3112.3,3112.1,0.62974443]
[1732082749775,0.0876016,3112.3,3112.2,0.08412947]
[1732082749990,0.0876016,3112.3,3112.2,1.69072947]
[1732082751363,3.3006516,3112.3,3112.2,1.69072947]
[1732082751696,0.9040016,3112.3,3112.2,1.69072947]
[1732082753593,4.1170516,3112.3,3112.2,1.69072947]
[1732082754306,4.1170516,3112.3,3112.2,1.6066]
[1732082754610,4.1170516,3112.3,3112.2,1.68790671]
[1732082756895,0.9040016,3112.3,3112.2,1.68790671]
[1732082758619,4.1170516,3112.3,3112.2,1.68790671]
[1732082759524,0.0876016,3112.3,3112.2,1.68790671]
[1732082759764,0.0876016,3112.3,3112.2,1.85669738]
[1732082760327,0.0876016,3112.3,3112.2,1.68790671]
[1732082762478,0.0876016,3112.3,3112.2,4.90106671]
[1732082763577,0.0876016,3112.3,3112.2,5.70376671]
[1732082763730,0.0876016,3112.3,3112.2,4.90106671]
[1732082766339,0.0876016,3112.3,3112.2,8.76801797]
[1732082766538,0.0876016,3112.3,3112.2,10.37322296]
[1732082767768,0.8466016,3112.3,3112.2,6.57052296]
[1732082767967,0.0876016,3112.3,3112.2,4.90106671]
[1732082768329,0.0876016,3112.3,3112.2,4.96531658]
[1732082768568,0.0876016,3112.3,3112.2,7.96531658]
[1732082768770,0.0876016,3112.3,3112.2,9.09918737]
[1732082768931,0.0876016,3112.3,3112.2,13.27888737]
[1732082770872,0.0876016,3112.3,3112.2,9.90188737]
[1732082772457,0.0876016,3112.3,3112.2,9.09918737]
[1732082772647,0.0876016,3112.3,3112.2,6.09918737]
[1732082774275,0.0876016,3112.3,3112.2,9.09918737]
[1732082775253,0.0876016,3112.3,3112.2,6.09918737]
[1732082775453,0.0876016,3112.3,3112.2,4.90106671]
[1732082781080,0.0876016,3112.3,3112.2,4.96532273]
[1732082781580,0.0876016,3112.3,3112.2,4.96532291]
[1732082782320,0.0876016,3112.3,3112.2,5.78162291]
[1732082782722,0.0876016,3112.3,3112.2,5.71736671]
[1732082782931,0.0876016,3112.3,3112.2,6.61042238]
[1732082783419,0.0876016,3112.3,3112.2,5.79412238]
[1732082783627,0.0876016,3112.3,3112.2,4.90106671]
[1732082789762,0.0876016,3112.3,3112.2,1.68790671]
[1732082789934,0.9008016,3112.3,3112.2,1.68790671]
[1732082793062,5.45020611,3112.3,3112.2,1.68790671]
[1732082797713,9.78656062,3112.3,3112.2,1.68790671]
[1732082798012,11.08751768,3112.3,3112.2,1.6066]
[1732082798544,11.63751768,3112.3,3112.2,1.6066]
[1732082800015,0.7778,3111.7,3111.2,3.21415]
[1732082800356,2.51329451,3111.7,3111.2,6.42826]
[1732082800509,2.11415451,3111.7,3111.2,3.21411]
[1732082801156,0.7778,3111.7,3111.2,3.21411]
[1732082801459,2.11415451,3111.7,3111.2,3.21411]
[1732082802326,2.11415451,3111.7,3111.0,3.21438]
[1732082802527,3.21385,3111.6,3111.0,0.43082172]
[1732082802726,4.55031451,3111.5,3110.9,1.09383719]
[1732082803240,0.7778,3111.4,3110.9,1.09383719]
[1732082803815,0.7778,3111.6,3110.9,1.09383719]
[1732082804057,3.99158,3111.6,3110.9,1.82467591]
[1732082805754,3.21391,3111.5,3110.9,1.82467591]
[1732082805950,1.33635451,3111.5,3110.9,0.33533719]
[1732082806459,3.21387,3111.6,3110.9,3.54976719]
[1732082806460,0.7778,3111.4,3110.9,3.54976719]
[1732082806825,0.7778,3111.4,3110.9,0.33533719]
[1732082807337,0.7778,3111.4,3111.0,0.07723732]
[1732082808778,0.7778,3111.6,3111.0,4.12421732]
[1732082808939,3.9916,3111.6,3111.0,4.12421732]
[1732082809238,3.9916,3111.6,3111.1,0.48209768]
[1732082809439,3.9916,3111.6,3111.1,0.55931721]
[1732082811177,0.7778,3111.6,3111.1,0.55931721]
[1732082811387,3.21339,3112.0,3111.4,3.21391]
[1732082811550,4.04289,3112.0,3111.4,3.21393]
[1732082811738,4.04289,3112.0,3111.5,0.47285272]
[1732082812158,0.8295,3112.0,3111.5,3.68672272]
[1732082812487,4.04286,3112.0,3111.5,3.28832972]
[1732082813160,0.0876016,3112.3,3111.6,3.2137]
[1732082813362,0.8295,3112.2,3111.6,4.31253297]
[1732082813552,4.0427,3112.2,3111.6,4.31253297]
[1732082813751,4.0427,3112.2,3111.7,3.21367]
[1732082813946,0.8295,3112.2,3111.7,3.28807683]
[1732082814152,0.8295,3112.2,3111.7,4.04813781]
[1732082814364,5.37906451,3112.2,3111.7,0.83446781]
[1732082814676,3.2133,3112.1,3111.7,0.07440683]
[1732082815190,3.21341,3112.0,3111.7,0.07440683]
[1732082815478,4.54976451,3112.0,3111.7,0.07440683]
[1732082815646,3.21348,3111.9,3111.7,0.07440683]
[1732082815975,3.21348,3111.9,3111.8,0.07438905]
[1732082816194,1.33635451,3112.0,3111.4,0.77]
[1732082816363,1.33635451,3112.0,3111.8,0.07438905]
[1732082816563,3.21347,3111.9,3111.4,0.77]
[1732082816977,3.21381,3111.6,3111.2,0.77]
[1732082817181,1.33635451,3111.8,3111.3,3.21407]
[1732082817361,0.8295,3111.9,3111.3,3.21407]
[1732082817560,1.36742445,3111.9,3111.3,3.21407]
[1732082817763,0.8295,3111.9,3111.4,3.21396]
[1732082819191,4.04297,3111.9,3111.4,3.21396]
[1732082819820,3.2132,3112.2,3111.4,3.21396]
[1732082819990,7.25595,3112.2,3111.6,3.21377]
[1732082820153,4.0427,3112.2,3111.6,3.21377]
[1732082820548,3.21328,3112.1,3111.6,3.21377]
[1732082820854,1.42395611,3112.3,3111.6,3.21377]
[1732082820855,1.42395611,3112.3,3111.7,3.21365]
[1732082821185,1.42395611,3112.3,3111.8,3.21356]
[1732082821388,1.42395611,3112.3,3111.9,3.9834]
[1732082821389,0.0876016,3112.3,3111.9,3.9834]
[1732082821573,0.0876016,3112.3,3111.9,3.98341]
[1732082821778,0.0876016,3112.3,3111.9,0.77]
[1732082822314,0.0876016,3112.3,3111.9,3.9834]
[1732082822474,0.0876016,3112.3,3112.2,3.21316]
[1732082822898,0.0876016,3112.3,3112.2,3.98316]
[1732082828012,0.0876016,3112.3,3112.2,4.04741525]
[1732082829418,0.0876016,3112.3,3112.2,4.05739578]
[1732082829775,0.0876016,3112.3,3112.2,7.05739578]
[1732082829981,0.0876016,3112.3,3112.2,8.41221244]
[1732082835421,0.0876016,3112.3,3112.2,10.01881244]
[1732082839028,0.0876016,3112.3,3112.2,13.39581244]
[1732082841341,0.0876016,3112.3,3112.2,10.01881244]
[1732082843053,1.6e-06,3112.3,3112.2,14.74216695]
[1732082843942,1.6e-06,3112.3,3112.2,14.73216695]
[1732082844336,1.6e-06,3112.3,3112.2,11.35516695]
[1732082844650,1.6e-06,3112.3,3112.2,10.01881244]
[1732082847865,1.6e-06,3112.3,3112.2,13.39581244]
[1732082848164,1.6e-06,3112.3,3112.2,16.3001849]
[1732082853791,1.6e-06,3112.3,3112.2,13.40581244]
[1732082854287,0.09985865,3113.2,3112.3,3.0]
[1732082854446,0.09985865,3113.2,3113.0,3.21231]
[1732082854646,0.8164,3113.1,3113.0,3.21231]
[1732082854847,0.8164,3113.1,3112.8,3.21244]
[1732082855049,0.8164,3113.1,3112.7,3.21259]
[1732082855263,0.8164,3113.0,3112.7,6.42516]
[1732082855487,0.8164,3113.0,3112.8,3.21253]
[1732082857462,0.8164,3113.0,3112.7,3.21257]
[1732082857665,0.8164,3113.0,3112.6,3.21274]
[1732082858086,0.8164,3112.9,3112.4,4.81929]
[1732082858289,3.21249,3112.9,3112.4,1.6064]
[1732082858464,1.17893349,3112.8,3112.4,1.6064]
[1732082858665,0.8164,3112.7,3112.4,1.6064]
[1732082859509,0.8164,3112.7,3112.5,0.07328646]
[1732082860864,3.21274,3112.6,3112.5,0.07328646]
[1732082861111,6.92351246,3112.6,3112.5,0.07328646]
[1732082861322,5.0800066,3112.6,3112.5,0.07328646]
[1732082863092,3.98165,3112.5,3112.4,1.6064]
[1732082865614,0.7688,3112.5,3112.4,1.6064]
[1732082865798,3.98165,3112.5,3112.4,1.67973989]
[1732082866504,0.7688,3112.5,3112.4,1.67973989]
[1732082868212,3.21254,3112.8,3112.4,1.67973989]
[1732082868213,0.7688,3112.8,3112.6,3.21273]
[1732082868516,0.7688,3112.8,3112.4,1.67973989]
[1732082868517,0.7688,3112.8,3112.5,3.21284]
[1732082868717,0.7688,3112.8,3112.7,0.07328302]
[1732082868923,0.7688,3112.8,3112.6,0.07330078]
[1732082869102,0.7688,3112.8,3112.7,0.07328302]
[1732082869505,3.98134,3112.8,3112.4,1.6064]
[1732082869733,3.98134,3112.8,3112.7,0.07328302]
[1732082869907,4.700708,3112.8,3112.4,1.6064]
[1732082870108,4.700708,3112.8,3112.7,0.07328302]
[1732082870310,4.700708,3112.8,3112.4,1.6064]
[1732082870925,4.700708,3112.8,3112.5,0.07331855]
[1732082871337,0.7688,3112.8,3112.5,0.07331855]
[1732082874428,0.7688,3112.8,3112.5,3.28612855]
[1732082874801,3.98135,3112.8,3112.5,0.07331855]
[1732082875027,0.7688,3112.8,3112.5,0.07331855]
[1732082876141,3.98141,3112.8,3112.5,0.07331855]
[1732082876307,0.398132,3112.7,3112.5,0.07331855]
[1732082876509,3.610792,3112.7,3112.5,0.07331855]
[1732082877097,3.98154,3112.6,3112.5,0.07331855]
[1732082879565,4.54154,3112.6,3112.5,0.07331855]
[1732082879869,3.98165,3112.5,3112.4,1.6064]
[1732082882027,4.53165,3112.5,3112.4,1.6064]
[1732082882244,7.54165,3112.5,3112.4,1.6064]
[1732082884323,0.7688,3112.0,3111.3,3.97812]
[1732082884553,0.7688,3112.0,3111.4,3.21391]
[1732082884920,0.7688,3112.0,3111.5,3.21384]
[1732082886537,3.98223,3112.0,3111.3,3.97811]
[1732082887359,3.98223,3112.0,3111.4,3.21397]
[1732082887721,0.7688,3112.0,3111.4,3.21397]
[1732082887921,0.7688,3112.0,3111.6,3.21369]
[1732082889168,0.7688,3112.0,3111.7,3.21366]
[1732082889474,0.7688,3112.0,3111.8,0.07104307]
[1732082889653,0.7688,3112.0,3111.7,3.21366]
[1732082889857,0.7688,3112.0,3111.9,0.0710253]
[1732082890053,0.7688,3112.0,3111.7,3.21366]
[1732082890374,0.7688,3112.0,3111.9,0.0710253]
[1732082890525,0.7688,3112.0,3111.8,0.07104307]
[1732082890864,0.7688,3112.0,3111.9,0.0710253]
[1732082891068,0.7688,3112.0,3111.7,3.21366]
[1732082891282,0.7688,3112.0,3111.9,0.0710253]
[1732082891441,0.7688,3112.0,3111.7,3.21366]
[1732082891780,0.7688,3112.0,3111.9,0.0710253]
[1732082891966,1.166996,3112.0,3111.8,0.07104307]
[1732082892171,1.166996,3112.0,3111.3,3.214]
[1732082892172,3.21347,3111.9,3111.3,3.214]
[1732082892366,3.6515036,3111.9,3111.3,3.214]
[1732082892875,0.8292,3111.8,3111.3,3.214]
[1732082893576,4.04277,3111.8,3111.3,3.214]
[1732082893781,0.8292,3111.8,3111.3,3.214]
[1732082895006,0.8292,3111.8,3111.1,3.54959278]
[1732082895194,0.8292,3111.8,3111.2,3.21412]
[1732082895480,3.21369,3111.7,3111.2,3.21412]
[1732082895840,0.8292,3111.8,3111.2,3.21411]
[1732082896034,0.8292,3111.8,3111.3,3.21409]
[1732082896351,0.8292,3111.8,3111.2,3.21411]
[1732082896352,4.04278,3111.8,3111.2,3.21411]
[1732082896553,0.8292,3111.7,3111.2,3.21411]
[1732082897337,0.8292,3111.7,3111.3,3.21406]
[1732082897764,0.8292,3111.7,3111.1,0.33532278]
[1732082897976,0.8292,3111.7,3111.5,3.21379]
[1732082899158,0.8292,3111.7,3111.4,3.21391]
[1732082899484,3.21344,3112.0,3111.5,3.21386]
[1732082899485,0.8292,3111.9,3111.5,3.21386]
[1732082901050,4.04268,3111.9,3111.4,3.21397]
[1732082901248,4.768291,3111.9,3111.4,3.21397]
[1732082901798,4.768291,3111.9,3111.1,3.54956278]
[1732082902100,4.768281,3111.9,3111.3,3.21402]
[1732082903494,4.768281,3111.9,3111.1,3.54956278]
[1732082903794,0.4768281,3111.8,3111.2,3.21409]
[1732082903997,0.8292,3111.6,3111.2,3.21409]
[1732082904601,0.8292,3111.6,3111.3,0.07116937]
[1732082904910,0.8292,3111.6,3111.4,3.21395]
[1732082905207,0.8292,3111.6,3111.4,3.28510159]
[1732082908965,0.7679,3111.9,3111.5,3.21379]
[1732082909165,0.7679,3111.9,3111.4,0.07115159]
[1732082909166,0.7679,3111.9,3111.6,3.21371]
[1732082909374,0.7679,3111.9,3111.6,6.49854052]
[1732082909613,0.7679,3111.9,3111.6,3.28483052]
[1732082910060,0.7679,3111.9,3111.7,3.21367]
[1732082910509,0.7679,3111.9,3111.8,0.07108497]
[1732082911208,0.7679,3111.9,3111.7,3.21367]
[1732082911630,0.7679,3112.5,3112.0,3.21336]
[1732082911768,0.7679,3112.5,3112.2,3.21307]
[1732082912118,0.7679,3112.5,3112.3,0.07101414]
[1732082912409,0.7679,3112.5,3112.2,3.21307]
[1732082912775,0.7679,3112.5,3112.3,0.07101414]
[1732082913170,0.7679,3112.5,3112.2,3.21307]
[1732082913403,0.7679,3112.5,3112.4,0.07099636]
[1732082913609,0.7679,3112.5,3112.3,0.07101414]
[1732082913815,0.7679,3112.5,3112.4,0.07099636]
[1732082914018,0.7679,3112.5,3112.2,3.21307]
[1732082914211,0.7679,3112.5,3112.3,0.07101414]
[1732082914512,0.7679,3112.5,3112.2,3.21307]
[1732082914721,0.7679,3112.5,3112.4,0.07099636]
[1732082914892,0.7679,3112.5,3112.3,0.07101414]
[1732082915229,0.7679,3112.5,3112.4,0.07099636]
[1732082915391,0.7679,3112.5,3112.2,3.21307]
[1732082915715,0.7679,3112.5,3112.3,0.07101414]
[1732082916013,0.7679,3112.5,3112.2,3.21307]
[1732082916389,0.7679,3112.5,3112.3,0.07101414]
[1732082916624,0.7679,3112.5,3112.2,3.21307]
[1732082916794,0.7679,3112.5,3112.3,0.07101414]
[1732082916996,0.7679,3112.5,3112.2,3.21307]
[1732082917197,0.7679,3112.5,3112.3,0.07101414]
[1732082917398,0.7679,3112.5,3112.2,3.21307]
[1732082917723,0.7679,3112.5,3112.3,0.07101414]
[1732082918136,0.7679,3112.5,3111.9,3.21345]
[1732082918137,3.98083,3112.5,3111.9,3.21345]
[1732082918420,3.21295,3112.4,3111.9,3.21345]
[1732082918929,0.7679,3112.5,3112.2,3.21311]
[1732082919599,0.7679,3112.5,3112.3,0.070998]
[1732082919805,0.7679,3112.5,3112.2,3.21311]
[1732082920094,0.7679,3112.5,3112.3,0.070998]
[1732082920300,1.48723,3112.5,3112.3,0.070998]
[1732082920502,1.48723,3112.5,3111.8,3.9818]
[1732082920503,0.7679,3112.5,3111.8,3.9818]
[1732082920701,0.7679,3112.5,3112.0,3.21327]
[1732082921201,0.7679,3112.5,3112.2,3.21314]
[1732082921399,0.7679,3112.5,3112.3,0.070998]
[1732082921602,0.7679,3112.5,3112.2,3.21314]
[1732082921804,0.7679,3112.5,3112.3,3.21302]
[1732082922015,0.7679,3112.5,3112.3,3.284018]
[1732082922407,0.8168,3112.9,3112.5,3.21284]
[1732082922691,0.8168,3112.9,3112.6,0.07094469]
[1732082923391,0.8168,3112.9,3112.6,3.28367469]
[1732082923728,0.8168,3112.9,3112.7,3.21263]
[1732082923883,0.8168,3112.9,3112.6,3.28366469]
[1732082924089,0.8168,3112.9,3112.8,0.07090916]
[1732082924284,0.8168,3112.9,3112.7,0.07092692]
[1732082924512,0.8168,3112.9,3112.8,0.07090916]
[1732082925229,0.8168,3112.9,3112.6,3.21272]
[1732082925436,0.8168,3112.9,3112.7,0.07092692]
[1732082926905,0.8168,3113.1,3112.7,0.07092692]
[1732082927096,4.02907,3113.1,3112.7,0.07092692]
[1732082927730,4.02907,3113.1,3112.6,3.21272]
[1732082927903,4.02907,3113.1,3112.8,0.07090916]
[1732082928109,4.02907,3113.1,3112.7,0.07092692]
[1732082928324,4.02907,3113.1,3112.9,0.07089139]
[1732082928615,0.8168,3113.1,3113.0,0.07087363]
[1732082928838,0.8168,3113.1,3112.6,3.21272]
[1732082929042,0.8168,3113.1,3112.7,0.07091979]
[1732082930054,0.8168,3113.1,3112.7,3.28355979]
[1732082931963,0.09985865,3113.2,3112.8,3.21249]
[1732082932316,0.09985865,3113.2,3112.9,0.0684836]
[1732082934362,0.09985865,3113.2,3112.9,3.2808336]
[1732082934567,0.09985865,3113.2,3112.9,3.2809136]
[1732082935824,0.09985865,3113.2,3112.9,0.0684836]
[1732082936036,0.09985865,3113.2,3112.6,4.00716]
[1732082936235,0.09985865,3113.2,3112.7,0.06851605]
[1732082936727,4.64802013,3113.2,3112.7,0.06851605]
[1732082936928,3.21228,3113.1,3112.7,0.06851605]
[1732082937436,2.43759629,3113.2,3112.7,3.28114605]
[1732082937750,2.43759629,3113.2,3112.7,0.06851605]
[1732082937946,3.21228,3113.1,3112.7,0.06851605]
[1732082938127,3.77736763,3113.0,3112.4,4.00737]
[1732082938326,3.21243,3112.9,3112.8,0.06849828]
[1732082938529,5.11329911,3113.0,3112.4,4.0074]
[1732082938729,4.02923,3112.9,3112.8,0.06855196]
[1732082938970,4.94348291,3112.9,3112.4,3.2129]
[1732082939278,4.02923,3112.9,3112.4,3.2129]
[1732082939450,0.8168,3112.9,3112.5,0.06859746]
[1732082939772,4.02925,3112.9,3112.5,0.06859746]
[1732082940064,1.73105491,3112.9,3112.5,0.06859746]
[1732082940281,3.21258,3112.8,3112.2,4.00758]
[1732082940574,3.21267,3112.7,3112.6,0.06871724]
[1732082940739,0.8168,3112.9,3112.2,4.00758]
[1732082940942,0.8168,3112.9,3112.6,0.06857969]
[1732082941278,0.53651315,3112.8,3112.7,0.06856192]
[1732082941472,4.02924,3112.9,3112.4,3.21294]
[1732082941672,4.02924,3112.9,3112.7,0.06856192]
[1732082941877,4.88699715,3112.9,3112.3,3.21305]
[1732082942083,4.88699715,3112.9,3112.8,0.06854416]
[1732082942285,4.88699715,3112.9,3112.3,3.21305]
[1732082942584,0.94353286,3112.8,3112.3,3.21305]
[1732082942750,4.02924,3112.9,3112.3,3.21305]
[1732082942954,4.02924,3112.9,3112.4,0.23987228]
[1732082943160,4.02924,3112.9,3112.3,3.21305]
[1732082943761,4.02924,3112.9,3112.2,0.7945]
[1732082943964,3.2127,3112.7,3112.3,0.23987961]
[1732082944273,3.2127,3112.7,3112.0,3.21327]
[1732082944274,3.21285,3112.5,3112.0,3.21327]
[1732082944482,4.02965,3112.5,3112.0,3.21327]
[1732082945154,0.8168,3112.5,3112.0,3.21327]
[1732082946342,4.02967,3112.5,3112.0,3.21327]
[1732082947175,0.8168,3112.5,3112.1,3.21321]
[1732082948305,0.8168,3112.5,3111.9,0.7945]
[1732082948506,0.8168,3112.5,3112.1,3.21317]
[1732082948707,0.8168,3112.5,3112.0,3.28208641]
[1732082948883,5.76827548,3112.8,3112.2,3.28180085]
[1732082949084,5.76827548,3112.8,3112.2,3.21311]
[1732082949328,4.11072555,3112.7,3112.3,0.06867308]
[1732082949493,0.89807555,3112.7,3112.2,3.21311]
[1732082949687,4.11072555,3112.7,3112.4,0.0686553]
[1732082949890,0.89807555,3112.7,3112.3,0.06867308]
[1732082950112,2.15275148,3112.8,3112.2,3.21311]
[1732082950328,5.36534148,3112.8,3112.4,0.0686617]
[1732082950584,3.21276,3112.6,3112.0,3.21328]
[1732082950813,5.31245148,3112.6,3112.5,0.06864393]
[1732082950994,3.21292,3112.5,3111.9,3.21344]
[1732082951211,3.21292,3112.5,3112.0,0.24004129]
[1732082951417,5.31245148,3112.6,3111.9,3.21344]
[1732082951418,3.21296,3112.4,3111.9,3.21344]
[1732082951618,3.21296,3112.4,3112.0,0.24003957]
[1732082951822,3.21296,3112.4,3111.9,3.21344]
[1732082952315,4.54891148,3112.4,3111.7,3.99788]
[1732082952535,0.7637,3112.3,3111.8,0.24006554]
[1732082952691,4.54920148,3112.2,3111.9,0.24006554]
[1732082952887,5.40178863,3112.2,3111.5,0.7843]
[1732082953133,3.21332,3112.1,3111.6,0.24013582]
[1732082953300,4.54920148,3112.2,3111.7,0.24013582]
[1732082953301,4.54931148,3112.0,3111.7,0.24013582]
[1732082953630,0.7637,3111.9,3111.4,3.2139]
[1732082953807,3.97727,3111.9,3111.5,0.24017593]
[1732082954005,0.7637,3111.9,3111.3,3.21405]
[1732082954601,1.34813016,3111.9,3111.2,0.7843]
[1732082954806,3.21376,3111.7,3111.1,3.21425]
[1732082955007,4.54952148,3111.8,3111.2,0.24008268]
[1732082955008,0.7637,3111.5,3111.2,0.24008268]
[1732082955206,0.7637,3111.7,3111.2,3.21416]
[1732082956133,3.97744,3111.7,3111.1,3.21427]
[1732082956299,3.21378,3111.6,3111.0,3.99863]
[1732082956498,3.21378,3111.6,3111.0,7.612823]
[1732082957132,0.7637,3111.7,3111.1,3.2142]
[1732082957342,0.7637,3111.7,3111.2,3.21413]
[1732082958039,0.7637,3111.7,3111.3,3.21401]
[1732082958238,0.7637,3111.7,3111.1,3.21425]
[1732082958529,0.7637,3111.7,3111.1,6.42848]
[1732082958745,0.7637,3111.7,3111.1,3.21423]
[1732082958945,0.7637,3111.7,3111.2,3.21416]
[1732082959252,0.7637,3111.7,3111.3,3.21401]
[1732082959559,0.7637,3111.7,3111.1,3.21429]
[1732082959560,3.97738,3111.7,3111.1,3.6541293]
[1732082959912,3.97738,3111.7,3111.1,3.21429]
[1732082961846,3.2138,3111.6,3111.0,0.7843]
[1732082962011,3.214,3111.4,3110.7,0.33537272]
[1732082962206,0.7637,3111.3,3110.7,1.11967272]
[1732082962551,0.7637,3111.3,3110.7,4.33429272]
[1732082962928,3.97786,3111.3,3110.7,4.33429272]
[1732082963531,0.7637,3111.3,3110.8,3.21451]
[1732082964355,0.7637,3111.3,3110.9,0.06444194]
[1732082964922,0.7637,3111.3,3110.9,3.27891194]
[1732082965124,0.7637,3111.3,3110.9,0.06444194]
[1732082965562,0.7637,3111.3,3110.9,3.27891194]
[1732082966586,0.7637,3111.3,3110.9,0.06444194]
[1732082966587,3.21421,3111.2,3110.9,0.06444194]
[1732082966751,3.21421,3111.2,3110.7,3.999]
[1732082966944,3.9778,3111.3,3111.0,0.06443221]
[1732082967187,0.7637,3111.3,3111.0,0.06443221]
[1732082967394,0.7637,3111.3,3110.8,3.21458]
[1732082967549,0.7637,3111.3,3111.1,0.06441442]
[1732082967748,0.7637,3111.3,3110.8,3.21458]
[1732082967989,1.3137,3111.3,3111.2,0.06439663]
[1732082968190,1.831475,3111.3,3110.8,3.21458]
[1732082968483,1.3137,3111.3,3111.2,0.06439663]
[1732082968899,4.52779,3111.3,3110.7,3.99893]
[1732082969273,4.52779,3111.3,3111.2,0.0644016]
[1732082969607,5.421974,3111.3,3111.2,0.0644016]
[1732082969904,5.421974,3111.3,3110.7,3.99893]
[1732082970592,3.21421,3111.2,3110.8,0.06447276]
[1732082970799,3.21421,3111.2,3110.7,3.99893]
[1732082970948,3.21421,3111.2,3110.9,0.06445497]
[1732082971146,3.21431,3111.1,3110.5,0.8154]
[1732082971376,3.21431,3111.1,3111.0,0.06443718]
[1732082971697,3.21451,3110.9,3110.3,3.21507]
[1732082972854,0.809,3110.7,3110.1,3.21531]
[1732082973055,3.21487,3110.6,3110.0,0.8154]
[1732082973292,3.21492,3110.5,3109.9,3.21547]
[1732082973498,3.21492,3110.5,3110.0,3.21541]
[1732082973652,3.21492,3110.5,3109.9,3.21553]
[1732082973848,0.809,3110.3,3109.8,0.8154]
[1732082974065,0.809,3110.3,3109.6,3.55130621]
[1732082974693,3.21544,3110.0,3109.6,0.33548621]
[1732082975072,3.21544,3110.0,3109.4,3.216]
[1732082975073,0.809,3109.9,3109.4,3.216]
[1732082975296,0.809,3109.9,3109.3,0.8154]
[1732082975297,4.02453,3109.9,3109.3,4.03149]
[1732082975497,4.02453,3109.9,3109.2,3.21618]
[1732082975698,3.21566,3109.8,3109.1,4.03169]
[1732082976015,3.21575,3109.7,3109.1,4.03169]
[1732082976178,3.21575,3109.7,3109.1,0.8154]
[1732082976378,7.24016,3109.9,3109.2,3.21619]
[1732082976582,3.21564,3109.8,3109.2,3.21619]
[1732082976774,0.809,3109.9,3109.3,3.21613]
[1732082976971,1.40933885,3109.9,3109.1,0.8154]